Cogmind - Beta 10 @@@ ROGUE MODE // 2020.09.18 @ 16:38:20 Player: Morgweiler Result: Destroyed by as-19712 with Assembled Blade Performance ------------- Evolutions (0) 0 Regions Visited (2) 400 Robots Destroyed (10) 50 Value Destroyed (160) 160 Prototype IDs (0) 0 Alien Tech Used (0) 0 Bonus (0) 0 TOTAL SCORE: 610 Bonus ------- None Cogmind --------- Core Integrity 0/250 Matter 300/300 Energy 100/100 System Corruption 7% Temperature Cool (0) Movement Treading (160) Location -10/Mines Parts ------- > --- POWER (1) -------- (None) > --- PROPULSION (2) --- Light Treads Light Treads > --- UTILITY (2) ------ Small Storage Unit > --- WEAPON (2) ------- (None) > --- INVENTORY (6) ---- Terrain Scanner Peak State ------------ > --- POWER ------------ Light Nuclear Core > --- PROPULSION ------- Wheel Wheel > --- UTILITY ---------- Small Storage Unit Seismic Analyzer > --- WEAPON ----------- Medium Laser Light Assault Rifle > --- INVENTORY -------- Light Treads Light Treads Terrain Scanner Grenade Launcher [Rating: 9] Favorites ----------- Power Light Ion Engine Engine Light Ion Engine Power Core Light Nuclear Core Propulsion Wheel Treads Light Treads Wheel Wheel Utility Small Storage Unit Storage Small Storage Unit Processor Seismic Analyzer Weapon Medium Laser Energy Gun Medium Laser Ballistic Gun Light Assault Rifle Launcher Grenade Launcher Build | -11 -10 -10 ------- Run | Scr Mat Min Slots Evolved . | . . . Power . | . . . Propulsion . | . . . Utility . | . . . Weapon . | . . . Parts Attached 12 | 7 . 5 Power 2 | 1 . 1 Engine 1 | 1 . . Core 1 | . . 1 Reactor . | . . . Propulsion 4 | 2 . 2 Treads 2 | . . 2 Leg . | . . . Wheel 2 | 2 . . Hover . | . . . Flight . | . . . Utility 2 | 2 . . Device . | . . . Storage 1 | 1 . . Processor 1 | 1 . . Hackware . | . . . Protection . | . . . Artifact . | . . . Weapon 4 | 2 . 2 Energy Gun 1 | 1 . . Energy Cannon . | . . . Ballistic Gun 2 | 1 . 1 Ballistic Cannon . | . . . Launcher 1 | . . 1 Special Weapon . | . . . Impact Weapon . | . . . Slashing Weapon . | . . . Piercing Weapon . | . . . Special Melee Weapon . | . . . Unidentified Prototypes . | . . . Parts Lost 8 | . . 8 Power 2 | . . 2 Propulsion 2 | . . 2 Utility 1 | . . 1 Weapon 3 | . . 3 Highest Loss Streak 7 | . . 7 Average Slot Usage (%) 91 | . 100 87 Engine 5 | . 14 1 Core 6 | . . 9 Treads 1 | . . 1 Wheel 25 | . 28 24 Storage 14 | . 14 14 Processor 13 | . 14 13 Energy Gun 12 | . 14 11 Ballistic Gun 6 | . 14 3 Launcher 4 | . . 5 Naked Turns . | . . . Heaviest Build 14 | 10 10 14 Greatest Support 40 | 20 20 40 Greatest Overweight (x) . | . . . Average Overweight (x) . | . . . Largest Inventory Capacity 6 | 6 6 6 Average Capacity 5 | 5 6 6 Most Carried 5 | 2 5 5 Average Carried 3 | 1 4 4 Final Capacity 6 | 6 6 6 Final Carried 5 | 2 5 1 Class Distribution -------------------- 100% | Mutant Dominant Class ---------------- Mutant | -10/Materials Mutant | -10/Mines Resources | -11 -10 -10 ----------- Run | Scr Mat Min Matter Collected 341 | 283 . 58 Remotely . | . . . Salvage Created 199 | 79 . 120 Parts 13 | 11 . 2 Haulers Intercepted . | . . . Recyclers Shooed 1 | 1 . . Parts Field Recycled . | . . . Retrieved Matter . | . . . Parts Self-Destructed . | . . . Prevented . | . . . Kills | -11 -10 -10 ------- Run | Scr Mat Min Combat Hostiles Destroyed 6 | . . 6 Melee 3 | . . 3 Guns 3 | . . 3 Classes Destroyed 5 | 2 . 3 Worker 2 | 2 . . Tunneler 2 | 2 . . Grunt 2 | . . 2 Demolisher 1 | . . 1 Assembled 3 | . . 3 Best Kill Streak 3 | 2 . 3 Combat Bots Only 3 | . . 3 Max Kills in Single Turn 1 | 1 . 1 Gunslinging . | . . . Exploded . | . . . Melee 1 | . . 1 Uniques/NPCs Destroyed . | . . . Combat | -11 -10 -10 -------- Run | Scr Mat Min Damage Taken 908 | . . 908 Core 278 | . . 278 Absorbed by Shields . | . . . Core Remaining (%) 100 | 100 . . Volleys Fired 44 | 13 . 31 Largest 2 | 2 . 2 Hottest 80 | 70 . 80 Shots Fired 71 | 26 . 45 Gun 67 | 26 . 41 Cannon . | . . . Launcher 4 | . . 4 Special . | . . . Kinetic 31 | 13 . 18 Thermal 36 | 13 . 23 Explosive 4 | . . 4 Electromagnetic . | . . . Robot Hit Streak 8 | 5 . 8 Robot Miss Streak 4 | 4 . 3 Penetration Max . | . . . Secondary Targets . | . . . Shots Hit Robots 35 | 13 . 22 Core Hits 18 | 6 . 12 Critical Hits . | . . . Critical Kills . | . . . Critical Parts Destroyed . | . . . Melee Attacks . | . . . Impact . | . . . Slashing . | . . . Piercing . | . . . Sneak Attacks . | . . . Combat Hostiles . | . . . Follow-up Attacks . | . . . Damage Inflicted 387 | 136 . 251 Guns 358 | 136 . 222 Cannons . | . . . Explosions 20 | . . 20 Melee . | . . . Ramming 9 | . . 9 Kinetic 160 | 62 . 98 Thermal 198 | 74 . 124 Explosive 20 | . . 20 Electromagnetic . | . . . Impact . | . . . Slashing . | . . . Piercing . | . . . Highest Corruption 7 | . . 7 Average Corruption 6 | . . 6 Corruption Purged . | . . . Effects 1 | . . 1 Data Loss (minor) 1 | . . 1 Overload Shots . | . . . Overflow Damage . | . . . Projectiles . | . . . Explosions . | . . . Melee . | . . . Knockbacks . | . . . Impact . | . . . Kinetic . | . . . Secondary . | . . . Self-Inflicted Damage 8 | . . 8 Shots 1 | . . 1 Rammed 7 | . . 7 Targets Rammed 10 | . . 10 Kicked . | . . . Crushed 3 | . . 3 Highest Temperature 190 | 100 . 190 Average Temperature 65 | 41 . 78 Received Heat Transfer 96 | . . 96 Siege Activations . | . . . Robots Corrupted . | . . . Combat Hostiles . | . . . Parts Fried . | . . . Impact Corruptions . | . . . Robots Melted . | . . . Combat Hostiles . | . . . Parts Melted 3 | . . 3 Heat Transferred 592 | 222 . 370 Parts Sabotaged . | . . . Parts Stolen . | . . . Parts Stripped . | . . . Power Chain Reactions . | . . . Missiles Intercepted . | . . . Alert | -11 -10 -10 ------- Run | Scr Mat Min Peak Influence 64 | 20 13 64 Initial 13 | . 13 4 Average 29 | 4 13 44 Maximum Alert Level . | . . . Low Security (%) 100 | 100 100 100 Level 1 . | . . . Level 2 . | . . . Level 3 . | . . . Level 4 . | . . . Level 5 . | . . . High Security . | . . . Max Security . | . . . Squads Dispatched . | . . . Investigation . | . . . Extermination . | . . . Reinforcement . | . . . Assault . | . . . Garrison . | . . . Intercept . | . . . Construction Impeded . | . . . Haulers Reinforced . | . . . Stealth | -11 -10 -10 --------- Run | Scr Mat Min Distress Signals . | . . . Communications Jammed . | . . . Distress Signals . | . . . Times Spotted 18 | . 2 16 Peak Tracking Total 8 | . 3 8 Tactical Retreats 1 | . 1 . Traps | -11 -10 -10 ------- Run | Scr Mat Min Traps Triggered . | . . . Indirectly . | . . . Trap Hack Attempts . | . . . Triggered . | . . . Disarmed . | . . . Reprogrammed . | . . . Reused . | . . . Traps Extracted . | . . . Installed . | . . . Triggered . | . . . Machines | -11 -10 -10 ---------- Run | Scr Mat Min Machines Disabled 1 | . . 1 Max in Single Turn 1 | . . 1 Machines Sabotaged . | . . . Garrisons Compromised . | . . . Overloaded Fab Kills . | . . . Fab Network Shutdowns . | . . . Hacking | -11 -10 -10 --------- Run | Scr Mat Min Machines Accessed 4 | . 4 . Terminals 1 | . 1 . Fabricators . | . . . Repair Stations 1 | . 1 . Recycling Units 2 | . 2 . Scanalyzers . | . . . Garrison Access . | . . . Total Hacks 8 | . 8 . Successful 5 | . 5 . Failed 3 | . 3 . Catastrophic . | . . . Database Lockouts . | . . . Manual . | . . . Terminals 1 | . 1 . Fabricators . | . . . Repair Stations 3 | . 3 . Recycling Units 4 | . 4 . Scanalyzers . | . . . Garrison Access . | . . . Terminal Hacks . | . . . Fabricator Hacks . | . . . Repair Station Hacks 1 | . 1 . Scan Component 1 | . 1 . Recycling Unit Hacks 4 | . 4 . Process 1 | . 1 . Report Inventory 1 | . 1 . Retrieve Matter 1 | . 1 . Retrieve Components 1 | . 1 . Scanalyzer . | . . . Garrison Access Hacks . | . . . Unauthorized Hacks . | . . . Terminals . | . . . Fabricators . | . . . Repair Stations . | . . . Recycling Units . | . . . Scanalyzers . | . . . Garrison Access . | . . . Data Cores Recovered . | . . . Used . | . . . Hacking Detections 3 | . 3 . Full Trace Events . | . . . Feedback Events . | . . . Feedback Blocked . | . . . Robot Schematics Acquired . | . . . Robots Built . | . . . Matter . | . . . Time . | . . . Total Robot Build Rating . | . . . Part Schematics Acquired . | . . . Parts Built . | . . . Matter . | . . . Time . | . . . Total Part Build Rating . | . . . Parts Repaired . | . . . Time . | . . . Parts Recycled . | . . . Recycled Matter 7 | . 7 . Retrieved Matter . | . . . Retrieved Components 2 | . 2 . Parts Scanalyzed . | . . . Part Schematics Acquired . | . . . Parts Damaged . | . . . Bothacking | -11 -10 -10 ------------ Run | Scr Mat Min Used RIF Installer . | . . . Robots Hacked . | . . . Non-combat . | . . . Combat . | . . . Robot Hacks Applied . | . . . Relay Couplers Released . | . . . Robots Rewired . | . . . Allies Hacked . | . . . Hacks Repelled . | . . . Allies | -11 -10 -10 -------- Run | Scr Mat Min Total Allies . | . . . Largest Group . | . . . Highest-Rated Group . | . . . Highest-Rated Ally . | . . . Total Orders . | . . . Ally Attacks . | . . . Total Damage . | . . . Kills . | . . . Allies Corrupted . | . . . Allies Melted . | . . . Intel | -11 -10 -10 ------- Run | Scr Mat Min Robot Analysis Total . | . . . Derelict Logs Recovered . | . . . Drone Launches . | . . . Drone Recoveries . | . . . Exploration | -11 -10 -10 ------------- Run | Scr Mat Min Turns Passed 561 | 116 127 318 Spaces Moved 442 | 85 155 202 Core 1 | 1 . . Treads 2 | . . 2 Legs . | . . . Wheels 439 | 84 155 200 Hover . | . . . Flight . | . . . Fastest Speed 50 | 50 80 80 Average Speed 80 | 79 80 80 Slowest Speed 160 | 80 80 160 Overloaded Moves . | . . . Propulsion Burnouts . | . . . Robots Hopped . | . . . Cave-ins Triggered . | . . . Exploration Rate (%) 27 | 5 33 43 Regions Visited 2 Branch Regions 1 Pre-discovered Areas . | . . . Known Exits Taken . | . . . Unknown Exits Taken 2 | 1 1 . Scrap Searched . | . . . Spaces Dug . | . . . Terrain Destroyed 33 | . . 33 Melee . | . . . Projectile . | . . . AOE 33 | . . 33 Terrain Rammed . | . . . Walls Destroyed . | . . . Machines Disabled . | . . . Actions | -11 -10 -10 --------- Run | Scr Mat Min Total 574 | 106 157 311 Wait 61 | . . 61 Move 440 | 84 154 202 Hop . | . . . Pick Up 5 | 2 3 . Fast Attach 8 | 7 . 1 Attach 4 | . . 4 Detach 1 | . . 1 Swap . | . . . Drop 1 | . . 1 Fire 44 | 13 . 31 Melee . | . . . Ram 2 | . . 2 Kick . | . . . Crush 8 | . . 8 Escape Stasis . | . . . Rewire . | . . . Trap . | . . . Miscellaneous . | . . . Route ------- -11/Scrapyard -10/Materials -10/Mines History --------- Turn | Location | Event 15 | -11/Scrapyard | Discovered new exit (range 15) 117 | -11/Scrapyard | Entered Materials 212 | -10/Materials | Discovered new exit (range 15) 244 | -10/Materials | Entered Mines 315 | -10/Mines | Build established: Mutant 331 | -10/Mines | Met a Derelict bent on vengeance 482 | -10/Mines | Assembled infested the area 543 | -10/Mines | Core integrity fell below 50% 551 | -10/Mines | Core integrity fell below 20% 562 | -10/Mines | Destroyed by as-19712 with Assembled Blade Last Messages --------------- 00542_ Destabilizing: Short circuit. 00543_ The unstable cave ceiling collapses. 00543_ Slammed into as-63575. 00544_ The unstable cave ceiling collapses. 00545_ Acquired 2 matter. 00545_ The unstable cave ceiling collapses. 00545_ Broken Seismic Analyzer destroyed. 00545_ System corrupted by crushing effect (+2). 00546_ System corrupted: Component data lost. 00546_ Crushed as-63575. 00546_ as-63575 destroyed. 00547_ Acquired 5 matter. 00548_ Slammed into as-81255. 00553_ Crushed as-81255. 00553_ as-81255 destroyed. 00554_ The unstable cave ceiling collapses. 00556_ Slammed into as-10668. 00558_ T-07 Excavator destroyed. 00559_ Crushed as-10668. 00559_ as-10668 destroyed. Map ----- +----------------------------------------------------+ | ????????????????????????????????# ######??## | | ????????????????????????????????# #????????# | | ????????????????????????????????# #????????## | | ????????????????????????????????# #?????????## # | | ??????????????????????????####### #??????????#### | | ??????????????????????????# #?????????????? | | ??????????????????????????# ##### #?????????????? | | ??????????????????????????# #???# #?????????????? | | ?????????????????????????## ##??# #?????????????? | | ???????????????#####????## ##?# #?????????????? | | ??????????????## ##??# ### #?????????????? | | ??????????????# #??# ## #?????????????? | | ??????????????# """ #??# ## #?????????????? | | ??????????# #### """ #??# # t#?????????????? | | ??????????# """ ##?## ########??????? | | ???????????? """ ##?## #?????? | | ???????????????# ##?## #?????? | | ???????????????# #### a #######???????? | | ???????????????# # # k #####?????????? | | ???????????????# ### |a #?????? | | ???????????????# #?## =a!% # ## #####????????? | | ???????????????# #??###=! ####?###????????????? | | ???????????????# #????# #????????????????? | | ??????????###### #????#% # #????????????????? | | ??????????# #????#%a #######???????????? | | ??????????# #######????#%@ =% % % #???????????? | | ??????????# #??????????#%## #### #???????????? | | ??????????# #??????????#% # # ###???????????????? | | ??????????# #?????????## ## #???????????????? | | ??????????# #?????????# #???????????????? | | ??????????# #?????????# # ### #???????????????? | | ??????????# #?????????# ##???????????????? | | ??????????# #?????????# # ##???????????????? | | ???###????# #?????????## ## ###??????????????? | | ???# ????# #??????????## #??????????????? | | ???# #????# #???????????## """ #??????????????? | | ???# #????# #????????????# """ #??????????????? | | ???# #????# #????????????# """ #??????????????? | | ???# #??# # ###??????????# #??????????????? | | #### ##### #??????????# % #??????????????? | | ##??????????# #??????????????? | | #??????????######%###??????????????? | | ##### " #??????######???# #????????????????? | | ####?## " #?????## ##### #????????????????? | | ????## ##????## #????????????????? | | ????# ##???### #### #????????????????? | | ????# ##???## #??# #???????????????? | | ????## ##??## ##?? #??????????????? | | ?????# ##?# ## ##??? ##??????????????? | | ?????# ### ### #????# ##???????????????? | +----------------------------------------------------+ Best States ------------- Heat Dissipation 25 Energy Generation 14 Energy Capacity 160 Matter Stores 300 Matter Capacity 300 Sight Range 16 Terrain Scan Density 60 Evasion (%) 44 Recoil Reduction 2 Item Schematics ----------------- None Robot Schematics ------------------ None Fabricated ------------ Nothing Alien Tech Used ----------------- None Achievements -------------- None Challenges ------------ None Game ------ Seed SpikedMetafiberRecalibrator Manual? 0 Play Time 00:08:13 Cumulative 16.8 hours Start 2020.09.18 @ 16:30:47 End 2020.09.18 @ 16:38:20 Sessions 1 Manual Loads 0 Difficulty Rogue Special Mode None Game No. 18 Rogue 10 Adventurer 4 Explorer 4 Win Type - Total 0 Types 0/0/0/0/0/0/0/0/0 Lore% 17 Gallery% 22 Achievement% 17 Wizard Run 0 Options --------- ASCII 0 Keyboard 1 Movement Numpad Keybinds 0 Fullscreen 2 Font 18/SmallcapsGlow Map View 76x50 Tactical HUD 1 Map Filters NONE Filters NONE Steam 1 RUN: 1b811fed-04fe-44ad-bfef-a42379bbf5d9